[Event "Titled Tuesday Blitz May 2 Late 2023"]
[White "Suvorov, Luca"]
[Black "Melikyan, Gnel"]
[WhiteFideId "12977071"]
[BlackFideId "54109990"]
[WhiteElo "2202"]
[BlackElo "2138"]
[Result "1-0"]
[Round "08"]
[TimeControl "180+2"]
[Date "2023.05.02"]
[WhiteClock "0:01:34"]
[BlackClock "0:01:36"]

1. e4 {[%clk 0:03:00]}  c6 {[%clk 0:02:59]} 2. d4 {[%clk 0:02:59]}  d5 {[%clk 0:03:00]} 3. e5 {[%clk 0:02:58]}  Bf5 {[%clk 0:03:00]} 4. h4 {[%clk 0:02:58]}  h5 {[%clk 0:02:59]} 5. Bd3 {[%clk 0:02:58]}  Bxd3 {[%clk 0:02:59]} 6. Qxd3 {[%clk 0:02:59]}  e6 {[%clk 0:02:59]} 7. Bg5 {[%clk 0:02:58]}  Be7 {[%clk 0:02:58]} 8. Nf3 {[%clk 0:02:55]}  Nd7 {[%clk 0:02:58]} 9. Nc3 {[%clk 0:02:45]}  a6 {[%clk 0:02:57]} 10. Ne2 {[%clk 0:02:45]}  c5 {[%clk 0:02:57]} 11. c3 {[%clk 0:02:45]}  Qb6 {[%clk 0:02:56]} 12. b3 {[%clk 0:02:42]}  Rc8 {[%clk 0:02:56]} 13. O-O {[%clk 0:02:39]}  c4 {[%clk 0:02:54]} 14. bxc4 {[%clk 0:02:37]}  Rxc4 {[%clk 0:02:54]} 15. Nd2 {[%clk 0:02:34]}  Rc8 {[%clk 0:02:48]} 16. c4 {[%clk 0:02:31]}  Bxg5 {[%clk 0:02:48]} 17. hxg5 {[%clk 0:02:29]}  Ne7 {[%clk 0:02:48]} 18. Rab1 {[%clk 0:02:28]}  Qa7 {[%clk 0:02:37]} 19. c5 {[%clk 0:02:24]}  b6 {[%clk 0:02:33]} 20. cxb6 {[%clk 0:02:20]}  Nxb6 {[%clk 0:02:33]} 21. Nf4 {[%clk 0:02:13]}  g6 {[%clk 0:02:30]} 22. Nb3 {[%clk 0:02:07]}  Nc4 {[%clk 0:02:21]} 23. Nc5 {[%clk 0:02:07]}  Nxe5 {[%clk 0:02:20]} 24. Qa3 {[%clk 0:01:58]}  Nc4 {[%clk 0:02:18]} 25. Qa4+ {[%clk 0:01:58]}  Kf8 {[%clk 0:02:08]} 26. Rb7 {[%clk 0:01:58]}  Qa8 {[%clk 0:02:04]} 27. Rxe7 {[%clk 0:01:43]}  Kxe7 {[%clk 0:01:55]} 28. Qd7+ {[%clk 0:01:42]}  Kf8 {[%clk 0:01:54]} 29. Nxg6+ {[%clk 0:01:38]}  Kg7 {[%clk 0:01:51]} 30. Nxh8 {[%clk 0:01:38]}  Rxh8 {[%clk 0:01:47]} 31. Nxe6+ {[%clk 0:01:37]}  Kg8 {[%clk 0:01:47]} 32. g6 {[%clk 0:01:34]}  fxe6 {[%clk 0:01:36]} 33. Qf7# {[%clk 0:01:34]} 1-0


[Site "https://www.chess.com"]

[Event "Titled Tuesday Blitz May 2 Late 2023"]
[White "Kavutskiy, Konstantin"]
[Black "Liu, Casper"]
[WhiteFideId "2026384"]
[BlackFideId "1454153"]
[WhiteElo "2323"]
[BlackElo "2221"]
[Result "1/2-1/2"]
[Round "08"]
[TimeControl "180+2"]
[Date "2023.05.02"]
[WhiteClock "0:00:13"]
[BlackClock "0:00:16"]

1. d4 {[%clk 0:03:00]}  Nf6 {[%clk 0:02:56]} 2. Bg5 {[%clk 0:02:59]}  Ne4 {[%clk 0:02:55]} 3. Bf4 {[%clk 0:02:59]}  d5 {[%clk 0:02:55]} 4. e3 {[%clk 0:02:59]}  g6 {[%clk 0:02:55]} 5. Nd2 {[%clk 0:02:58]}  Nd6 {[%clk 0:02:52]} 6. Ngf3 {[%clk 0:02:56]}  Bg7 {[%clk 0:02:52]} 7. Ne5 {[%clk 0:02:50]}  O-O {[%clk 0:02:51]} 8. h4 {[%clk 0:02:50]}  h5 {[%clk 0:02:50]} 9. Be2 {[%clk 0:02:42]}  Ne4 {[%clk 0:02:46]} 10. Nxe4 {[%clk 0:02:36]}  dxe4 {[%clk 0:02:47]} 11. g4 {[%clk 0:02:35]}  hxg4 {[%clk 0:02:31]} 12. Bxg4 {[%clk 0:02:34]}  Bxg4 {[%clk 0:02:29]} 13. Qxg4 {[%clk 0:02:35]}  Nc6 {[%clk 0:02:28]} 14. Nxc6 {[%clk 0:02:11]}  bxc6 {[%clk 0:02:28]} 15. h5 {[%clk 0:02:12]}  Qc8 {[%clk 0:02:25]} 16. Qxc8 {[%clk 0:01:56]}  Raxc8 {[%clk 0:02:24]} 17. hxg6 {[%clk 0:01:56]}  fxg6 {[%clk 0:02:24]} 18. c3 {[%clk 0:01:42]}  Kf7 {[%clk 0:02:23]} 19. O-O-O {[%clk 0:01:41]}  Bf6 {[%clk 0:02:12]} 20. Rdg1 {[%clk 0:01:32]}  Rg8 {[%clk 0:02:08]} 21. Bg5 {[%clk 0:01:28]}  Rg7 {[%clk 0:02:04]} 22. Rg4 {[%clk 0:01:23]}  Bxg5 {[%clk 0:01:54]} 23. Rxg5 {[%clk 0:01:23]}  Rf8 {[%clk 0:01:55]} 24. Rc5 {[%clk 0:01:08]}  Ke6 {[%clk 0:01:50]} 25. Re5+ {[%clk 0:01:00]}  Kd7 {[%clk 0:01:50]} 26. Rh2 {[%clk 0:00:54]}  Rgf7 {[%clk 0:01:49]} 27. Rxe4 {[%clk 0:00:50]}  Rxf2 {[%clk 0:01:49]} 28. Rxf2 {[%clk 0:00:50]}  Rxf2 {[%clk 0:01:49]} 29. Rg4 {[%clk 0:00:50]}  Rf6 {[%clk 0:01:44]} 30. Kc2 {[%clk 0:00:50]}  Ke6 {[%clk 0:01:44]} 31. Rg5 {[%clk 0:00:44]}  Rf2+ {[%clk 0:01:44]} 32. Kb3 {[%clk 0:00:43]}  Kf6 {[%clk 0:01:44]} 33. Rc5 {[%clk 0:00:41]}  g5 {[%clk 0:01:28]} 34. Rxc6+ {[%clk 0:00:41]}  Kf7 {[%clk 0:01:29]} 35. Rxc7 {[%clk 0:00:32]}  g4 {[%clk 0:01:28]} 36. Rc5 {[%clk 0:00:32]}  Kg6 {[%clk 0:01:17]} 37. Rc6+ {[%clk 0:00:29]}  Rf6 {[%clk 0:01:09]} 38. Rc8 {[%clk 0:00:28]}  Kg7 {[%clk 0:01:05]} 39. Rc7 {[%clk 0:00:21]}  Kf7 {[%clk 0:01:04]} 40. Rc5 {[%clk 0:00:17]}  Kg6 {[%clk 0:00:57]} 41. Rc8 {[%clk 0:00:16]}  Kg7 {[%clk 0:00:57]} 42. Rc7 {[%clk 0:00:16]}  Kf7 {[%clk 0:00:24]} 43. Rc5 {[%clk 0:00:14]}  g3 {[%clk 0:00:14]} 44. Rg5 {[%clk 0:00:14]}  Rg6 {[%clk 0:00:14]} 45. Rf5+ {[%clk 0:00:14]}  Rf6 {[%clk 0:00:15]} 46. Rg5 {[%clk 0:00:14]}  Rg6 {[%clk 0:00:16]} 47. Rf5+ {[%clk 0:00:14]}  Rf6 {[%clk 0:00:16]} 48. Rg5 {[%clk 0:00:13]} 1/2-1/2


[Site "https://www.chess.com"]

[Event "Titled Tuesday Blitz May 2 Late 2023"]
[White "Dobrowolski, Piotr"]
[Black "Gerbelli Neto, Eduardo"]
[WhiteFideId "1106236"]
[BlackFideId "2103281"]
[WhiteElo "2320"]
[BlackElo "2178"]
[Result "1-0"]
[Round "08"]
[TimeControl "180+2"]
[Date "2023.05.02"]
[WhiteClock "0:01:41"]
[BlackClock "0:00:34"]

1. e4 {[%clk 0:03:00]}  e5 {[%clk 0:02:59]} 2. Nf3 {[%clk 0:03:00]}  Nc6 {[%clk 0:02:59]} 3. Nc3 {[%clk 0:03:00]}  Nf6 {[%clk 0:02:59]} 4. h3 {[%clk 0:03:00]}  d5 {[%clk 0:02:58]} 5. exd5 {[%clk 0:03:00]}  Nxd5 {[%clk 0:02:59]} 6. Bb5 {[%clk 0:03:00]}  Nxc3 {[%clk 0:02:57]} 7. bxc3 {[%clk 0:03:00]}  Bd6 {[%clk 0:02:54]} 8. d4 {[%clk 0:03:00]}  exd4 {[%clk 0:02:52]} 9. cxd4 {[%clk 0:03:01]}  O-O {[%clk 0:02:52]} 10. O-O {[%clk 0:03:01]}  Bf5 {[%clk 0:02:38]} 11. c4 {[%clk 0:03:00]}  a6 {[%clk 0:02:28]} 12. Ba4 {[%clk 0:02:52]}  Nb8 {[%clk 0:01:55]} 13. Bb2 {[%clk 0:02:43]}  c6 {[%clk 0:01:51]} 14. Re1 {[%clk 0:02:39]}  b5 {[%clk 0:01:49]} 15. Bb3 {[%clk 0:02:38]}  Nd7 {[%clk 0:01:42]} 16. c5 {[%clk 0:02:30]}  Bc7 {[%clk 0:01:32]} 17. d5 {[%clk 0:02:29]}  cxd5 {[%clk 0:01:28]} 18. Qxd5 {[%clk 0:02:25]}  Be6 {[%clk 0:01:18]} 19. Rxe6 {[%clk 0:02:15]}  fxe6 {[%clk 0:01:19]} 20. Qxe6+ {[%clk 0:02:15]}  Kh8 {[%clk 0:01:15]} 21. Rd1 {[%clk 0:02:12]}  Nxc5 {[%clk 0:01:06]} 22. Bxg7+ {[%clk 0:02:12]}  Kxg7 {[%clk 0:01:02]} 23. Qg4+ {[%clk 0:02:12]}  Kh8 {[%clk 0:00:58]} 24. Rxd8 {[%clk 0:02:11]}  Raxd8 {[%clk 0:00:58]} 25. g3 {[%clk 0:01:52]}  Nxb3 {[%clk 0:00:58]} 26. axb3 {[%clk 0:01:52]}  Rd1+ {[%clk 0:00:58]} 27. Kg2 {[%clk 0:01:51]}  Rd3 {[%clk 0:00:55]} 28. Ng5 {[%clk 0:01:45]}  Bb6 {[%clk 0:00:42]} 29. Ne4 {[%clk 0:01:42]}  Rxb3 {[%clk 0:00:34]} 30. Qe6 {[%clk 0:01:41]} 1-0


[Site "https://www.chess.com"]

[Event "Titled Tuesday Blitz May 2 Late 2023"]
[White "Ocelak, Jakub"]
[Black "Spitzl, Vinzent"]
[WhiteFideId "23707933"]
[BlackFideId "12901253"]
[WhiteElo "2044"]
[BlackElo "2225"]
[Result "0-1"]
[Round "08"]
[TimeControl "180+2"]
[Date "2023.05.02"]
[WhiteClock "0:00:16"]
[BlackClock "0:00:33"]

1. b3 {[%clk 0:03:00]}  Nf6 {[%clk 0:02:59]} 2. Bb2 {[%clk 0:03:01]}  e6 {[%clk 0:02:59]} 3. Nf3 {[%clk 0:03:00]}  d5 {[%clk 0:03:00]} 4. e3 {[%clk 0:03:00]}  Be7 {[%clk 0:03:00]} 5. c4 {[%clk 0:03:00]}  O-O {[%clk 0:03:00]} 6. Nc3 {[%clk 0:03:01]}  b6 {[%clk 0:03:00]} 7. cxd5 {[%clk 0:02:58]}  exd5 {[%clk 0:02:59]} 8. d4 {[%clk 0:02:59]}  Bb7 {[%clk 0:02:57]} 9. Bd3 {[%clk 0:02:59]}  a6 {[%clk 0:02:55]} 10. O-O {[%clk 0:02:58]}  Nbd7 {[%clk 0:02:53]} 11. Ne5 {[%clk 0:02:57]}  Bd6 {[%clk 0:02:49]} 12. f4 {[%clk 0:02:58]}  Ne4 {[%clk 0:02:48]} 13. Nxe4 {[%clk 0:02:31]}  dxe4 {[%clk 0:02:48]} 14. Bc4 {[%clk 0:02:32]}  b5 {[%clk 0:02:44]} 15. Be2 {[%clk 0:02:22]}  f6 {[%clk 0:02:43]} 16. Nxd7 {[%clk 0:02:21]}  Qxd7 {[%clk 0:02:44]} 17. f5 {[%clk 0:02:11]}  Bd5 {[%clk 0:02:41]} 18. Rc1 {[%clk 0:01:59]}  c6 {[%clk 0:02:33]} 19. Qd2 {[%clk 0:01:54]}  a5 {[%clk 0:02:21]} 20. Bc3 {[%clk 0:01:29]}  a4 {[%clk 0:02:19]} 21. Bd1 {[%clk 0:01:20]}  axb3 {[%clk 0:02:12]} 22. Bxb3 {[%clk 0:01:21]}  Bxb3 {[%clk 0:02:04]} 23. axb3 {[%clk 0:01:20]}  Qf7 {[%clk 0:02:04]} 24. Bb4 {[%clk 0:01:15]}  Rfd8 {[%clk 0:02:02]} 25. Bxd6 {[%clk 0:01:12]}  Rxd6 {[%clk 0:02:02]} 26. Qb4 {[%clk 0:01:13]}  Qd7 {[%clk 0:01:54]} 27. Ra1 {[%clk 0:01:03]}  Rc8 {[%clk 0:01:34]} 28. Ra5 {[%clk 0:00:46]}  Rd5 {[%clk 0:01:29]} 29. g4 {[%clk 0:00:40]}  h5 {[%clk 0:01:28]} 30. h3 {[%clk 0:00:39]}  c5 {[%clk 0:01:02]} 31. Qxb5 {[%clk 0:00:38]}  Qc7 {[%clk 0:01:02]} 32. Kg2 {[%clk 0:00:34]}  h4 {[%clk 0:01:01]} 33. Rf2 {[%clk 0:00:24]}  Qg3+ {[%clk 0:00:51]} 34. Kf1 {[%clk 0:00:24]}  Kh7 {[%clk 0:00:50]} 35. Qc4 {[%clk 0:00:21]}  cxd4 {[%clk 0:00:36]} 36. Rxd5 {[%clk 0:00:15]}  Rxc4 {[%clk 0:00:34]} 37. bxc4 {[%clk 0:00:16]}  dxe3 {[%clk 0:00:34]} 38. Re2 {[%clk 0:00:16]}  Qf3+ {[%clk 0:00:33]} 39. Ke1 {[%clk 0:00:16]}  Qh1# {[%clk 0:00:33]} 0-1


[Site "https://www.chess.com"]

[Event "Titled Tuesday Blitz May 2 Late 2023"]
[White "Bryant, Todd"]
[Black "Remolar Gallen, Jose"]
[WhiteFideId "2031299"]
[BlackFideId "2215187"]
[WhiteElo "2075"]
[BlackElo "2223"]
[Result "1-0"]
[Round "08"]
[TimeControl "180+2"]
[Date "2023.05.02"]
[WhiteClock "0:00:12"]
[BlackClock "0:00:53"]

1. e4 {[%clk 0:03:00]}  g6 {[%clk 0:02:57]} 2. d4 {[%clk 0:02:57]}  Bg7 {[%clk 0:02:55]} 3. Nc3 {[%clk 0:02:57]}  c6 {[%clk 0:02:54]} 4. f4 {[%clk 0:02:54]}  d5 {[%clk 0:02:54]} 5. e5 {[%clk 0:02:50]}  h5 {[%clk 0:02:52]} 6. Be3 {[%clk 0:02:47]}  Nh6 {[%clk 0:02:53]} 7. Qd2 {[%clk 0:02:47]}  Ng4 {[%clk 0:02:51]} 8. Nf3 {[%clk 0:02:47]}  Nxe3 {[%clk 0:02:51]} 9. Qxe3 {[%clk 0:02:47]}  Bf5 {[%clk 0:02:51]} 10. O-O-O {[%clk 0:02:42]}  b5 {[%clk 0:02:51]} 11. Bd3 {[%clk 0:02:42]}  e6 {[%clk 0:02:46]} 12. h3 {[%clk 0:02:31]}  Qa5 {[%clk 0:02:28]} 13. Kb1 {[%clk 0:02:26]}  Nd7 {[%clk 0:02:24]} 14. Bxf5 {[%clk 0:02:06]}  gxf5 {[%clk 0:02:24]} 15. Ng5 {[%clk 0:02:07]}  Nb6 {[%clk 0:02:19]} 16. b3 {[%clk 0:01:59]}  Bf8 {[%clk 0:02:17]} 17. g4 {[%clk 0:01:54]}  Rb8 {[%clk 0:01:53]} 18. gxf5 {[%clk 0:01:52]}  Nc4 {[%clk 0:01:53]} 19. bxc4 {[%clk 0:01:21]}  Bb4 {[%clk 0:01:48]} 20. Ne2 {[%clk 0:00:36]}  bxc4 {[%clk 0:01:42]} 21. Ka1 {[%clk 0:00:36]}  Rb6 {[%clk 0:01:14]} 22. c3 {[%clk 0:00:36]}  Ba3 {[%clk 0:01:08]} 23. Rb1 {[%clk 0:00:35]}  Ke7 {[%clk 0:01:06]} 24. Rxb6 {[%clk 0:00:26]}  axb6 {[%clk 0:01:07]} 25. Rb1 {[%clk 0:00:17]}  Ra8 {[%clk 0:01:06]} 26. Qd2 {[%clk 0:00:17]}  exf5 {[%clk 0:01:04]} 27. Ng3 {[%clk 0:00:17]}  b5 {[%clk 0:01:03]} 28. Nxf5+ {[%clk 0:00:17]}  Kf8 {[%clk 0:01:04]} 29. e6 {[%clk 0:00:15]}  b4 {[%clk 0:01:00]} 30. cxb4 {[%clk 0:00:13]}  c3 {[%clk 0:00:53]} 31. Qxc3 {[%clk 0:00:12]}  Bxb4 {[%clk 0:00:53]} 32. Qxb4+ {[%clk 0:00:12]} 1-0


[Site "https://www.chess.com"]

[Event "Titled Tuesday Blitz May 2 Late 2023"]
[White "Colpe, Malte"]
[Black "Buchenau, Frank"]
[WhiteFideId "24623075"]
[BlackFideId "4604350"]
[WhiteElo "2289"]
[BlackElo "2157"]
[Result "1-0"]
[Round "08"]
[TimeControl "180+2"]
[Date "2023.05.02"]
[WhiteClock "0:00:10"]
[BlackClock "0:00:02"]

1. c4 {[%clk 0:02:59]}  e5 {[%clk 0:03:00]} 2. Nc3 {[%clk 0:02:58]}  Nf6 {[%clk 0:03:00]} 3. d3 {[%clk 0:02:56]}  Bb4 {[%clk 0:02:56]} 4. Bd2 {[%clk 0:02:56]}  O-O {[%clk 0:02:56]} 5. e4 {[%clk 0:02:55]}  Re8 {[%clk 0:02:55]} 6. Nf3 {[%clk 0:02:53]}  c6 {[%clk 0:02:54]} 7. Be2 {[%clk 0:02:52]}  d5 {[%clk 0:02:53]} 8. O-O {[%clk 0:02:51]}  d4 {[%clk 0:02:49]} 9. Nb1 {[%clk 0:02:50]}  a5 {[%clk 0:02:47]} 10. a3 {[%clk 0:02:44]}  Bxd2 {[%clk 0:02:45]} 11. Nbxd2 {[%clk 0:02:43]}  a4 {[%clk 0:02:44]} 12. c5 {[%clk 0:02:43]}  Nbd7 {[%clk 0:02:39]} 13. Rc1 {[%clk 0:02:37]}  Ra5 {[%clk 0:02:28]} 14. Nc4 {[%clk 0:01:57]}  Rxc5 {[%clk 0:02:25]} 15. Nd6 {[%clk 0:01:53]}  Re6 {[%clk 0:02:20]} 16. Nf5 {[%clk 0:01:40]}  g6 {[%clk 0:02:14]} 17. Nh6+ {[%clk 0:01:17]}  Kg7 {[%clk 0:02:15]} 18. Qd2 {[%clk 0:01:18]}  Rxc1 {[%clk 0:02:11]} 19. Rxc1 {[%clk 0:01:18]}  Ng8 {[%clk 0:02:03]} 20. Nxg8 {[%clk 0:00:48]}  Kxg8 {[%clk 0:02:03]} 21. Bd1 {[%clk 0:00:44]}  b5 {[%clk 0:01:55]} 22. b3 {[%clk 0:00:34]}  Nb6 {[%clk 0:01:42]} 23. Qh6 {[%clk 0:00:32]}  Qf8 {[%clk 0:01:38]} 24. Qh4 {[%clk 0:00:32]}  f6 {[%clk 0:01:21]} 25. bxa4 {[%clk 0:00:27]}  bxa4 {[%clk 0:01:20]} 26. Rb1 {[%clk 0:00:25]}  c5 {[%clk 0:01:20]} 27. Nd2 {[%clk 0:00:21]}  Ba6 {[%clk 0:01:04]} 28. Qh3 {[%clk 0:00:16]}  Qe7 {[%clk 0:00:55]} 29. Bg4 {[%clk 0:00:10]}  Rc6 {[%clk 0:00:51]} 30. Bd1 {[%clk 0:00:07]}  Kg7 {[%clk 0:00:48]} 31. f4 {[%clk 0:00:06]}  exf4 {[%clk 0:00:44]} 32. Qf3 {[%clk 0:00:07]}  g5 {[%clk 0:00:39]} 33. e5 {[%clk 0:00:05]}  Re6 {[%clk 0:00:33]} 34. exf6+ {[%clk 0:00:06]}  Qxf6 {[%clk 0:00:30]} 35. Ne4 {[%clk 0:00:07]}  g4 {[%clk 0:00:23]} 36. Qxg4+ {[%clk 0:00:07]}  Qg6 {[%clk 0:00:22]} 37. Qh3 {[%clk 0:00:06]}  Nd5 {[%clk 0:00:20]} 38. Bh5 {[%clk 0:00:07]}  Qh6 {[%clk 0:00:17]} 39. Qg4+ {[%clk 0:00:06]}  Rg6 {[%clk 0:00:10]} 40. Bxg6 {[%clk 0:00:05]}  Qxg6 {[%clk 0:00:10]} 41. Qd7+ {[%clk 0:00:05]}  Qf7 {[%clk 0:00:11]} 42. Qg4+ {[%clk 0:00:04]}  Kh6 {[%clk 0:00:08]} 43. Qf3 {[%clk 0:00:02]}  Ne3 {[%clk 0:00:07]} 44. Nf2 {[%clk 0:00:03]}  Qf5 {[%clk 0:00:05]} 45. Rb6+ {[%clk 0:00:03]}  Kg7 {[%clk 0:00:04]} 46. Rxa6 {[%clk 0:00:04]}  c4 {[%clk 0:00:05]} 47. Qb7+ {[%clk 0:00:04]}  Qf7 {[%clk 0:00:03]} 48. Qxf7+ {[%clk 0:00:05]}  Kxf7 {[%clk 0:00:04]} 49. dxc4 {[%clk 0:00:06]}  Nxc4 {[%clk 0:00:03]} 50. Nd3 {[%clk 0:00:06]}  Nxa3 {[%clk 0:00:03]} 51. Rxa4 {[%clk 0:00:06]}  Nc2 {[%clk 0:00:03]} 52. Rc4 {[%clk 0:00:06]}  Ne3 {[%clk 0:00:03]} 53. Rxd4 {[%clk 0:00:06]}  Nf5 {[%clk 0:00:03]} 54. Rxf4 {[%clk 0:00:07]}  Kg6 {[%clk 0:00:03]} 55. Ne5+ {[%clk 0:00:06]}  Kg5 {[%clk 0:00:02]} 56. Rxf5+ {[%clk 0:00:07]}  Kxf5 {[%clk 0:00:03]} 57. Nf3 {[%clk 0:00:08]}  Kg6 {[%clk 0:00:02]} 58. Kf2 {[%clk 0:00:09]}  h6 {[%clk 0:00:02]} 59. Kg3 {[%clk 0:00:10]} 1-0


[Site "https://www.chess.com"]

[Event "Titled Tuesday Blitz May 2 Late 2023"]
[White "Gabdushev, Ruslan"]
[Black "Pein, Jonathan"]
[WhiteFideId "4137833"]
[BlackFideId "417092"]
[WhiteElo "2233"]
[BlackElo "2151"]
[Result "0-1"]
[Round "08"]
[TimeControl "180+2"]
[Date "2023.05.02"]
[WhiteClock "0:00:30"]
[BlackClock "0:00:51"]

1. b3 {[%clk 0:02:58]}  c5 {[%clk 0:02:53]} 2. Bb2 {[%clk 0:02:58]}  Nf6 {[%clk 0:02:53]} 3. e3 {[%clk 0:02:58]}  g6 {[%clk 0:02:54]} 4. Bxf6 {[%clk 0:02:57]}  exf6 {[%clk 0:02:55]} 5. c3 {[%clk 0:02:57]}  d5 {[%clk 0:02:55]} 6. d4 {[%clk 0:02:56]}  Bg7 {[%clk 0:02:52]} 7. g3 {[%clk 0:02:54]}  O-O {[%clk 0:02:49]} 8. Bg2 {[%clk 0:02:54]}  Nc6 {[%clk 0:02:48]} 9. Ne2 {[%clk 0:02:51]}  f5 {[%clk 0:02:48]} 10. O-O {[%clk 0:02:49]}  Re8 {[%clk 0:02:49]} 11. dxc5 {[%clk 0:02:45]}  a5 {[%clk 0:02:44]} 12. Qxd5 {[%clk 0:02:39]}  Qxd5 {[%clk 0:02:44]} 13. Bxd5 {[%clk 0:02:39]}  Nb4 {[%clk 0:02:45]} 14. Bf3 {[%clk 0:02:31]}  Nc2 {[%clk 0:02:44]} 15. Nd2 {[%clk 0:02:31]}  Nxa1 {[%clk 0:02:43]} 16. Rxa1 {[%clk 0:02:31]}  Re5 {[%clk 0:02:28]} 17. c6 {[%clk 0:02:22]}  bxc6 {[%clk 0:02:29]} 18. Bxc6 {[%clk 0:02:21]}  Rb8 {[%clk 0:02:29]} 19. Nc4 {[%clk 0:02:16]}  Rc5 {[%clk 0:02:26]} 20. Bf3 {[%clk 0:02:14]}  Ba6 {[%clk 0:02:26]} 21. Rd1 {[%clk 0:01:58]}  Bxc4 {[%clk 0:02:21]} 22. bxc4 {[%clk 0:01:58]}  Rxc4 {[%clk 0:02:21]} 23. Rd7 {[%clk 0:01:57]}  Rbc8 {[%clk 0:01:57]} 24. Ra7 {[%clk 0:01:36]}  R4c7 {[%clk 0:01:37]} 25. Rxa5 {[%clk 0:01:35]}  Bxc3 {[%clk 0:01:37]} 26. Nxc3 {[%clk 0:01:24]}  Rxc3 {[%clk 0:01:38]} 27. Ra7 {[%clk 0:01:19]}  R8c5 {[%clk 0:01:27]} 28. Rd7 {[%clk 0:01:12]}  Kf8 {[%clk 0:01:21]} 29. h4 {[%clk 0:01:03]}  Rc2 {[%clk 0:01:08]} 30. Bd5 {[%clk 0:00:54]}  Ke8 {[%clk 0:01:03]} 31. Rxf7 {[%clk 0:00:38]}  Rxd5 {[%clk 0:01:02]} 32. Rxh7 {[%clk 0:00:37]}  Rdd2 {[%clk 0:01:02]} 33. h5 {[%clk 0:00:34]}  Rxf2 {[%clk 0:00:51]} 34. hxg6 {[%clk 0:00:30]}  Rfd2 {[%clk 0:00:51]} 0-1


[Site "https://www.chess.com"]

[Event "Titled Tuesday Blitz May 2 Late 2023"]
[White "Jodorcovsky Werjivker, Paulo"]
[Black "Sai Han Thiha"]
[WhiteFideId "3700305"]
[BlackFideId "13012290"]
[WhiteElo "2120"]
[BlackElo "1954"]
[Result "1-0"]
[Round "08"]
[TimeControl "180+2"]
[Date "2023.05.02"]
[WhiteClock "0:00:24"]
[BlackClock "0:00:10"]

1. e4 {[%clk 0:03:00]}  c6 {[%clk 0:03:00]} 2. d4 {[%clk 0:03:00]}  d5 {[%clk 0:03:01]} 3. exd5 {[%clk 0:03:01]}  cxd5 {[%clk 0:03:01]} 4. Bd3 {[%clk 0:03:02]}  Nc6 {[%clk 0:03:01]} 5. c3 {[%clk 0:03:02]}  Nf6 {[%clk 0:03:02]} 6. Bf4 {[%clk 0:03:03]}  Bg4 {[%clk 0:03:02]} 7. Qb3 {[%clk 0:03:03]}  Qd7 {[%clk 0:03:03]} 8. Nd2 {[%clk 0:03:03]}  e6 {[%clk 0:03:04]} 9. Ngf3 {[%clk 0:03:03]}  Bd6 {[%clk 0:03:04]} 10. Bxd6 {[%clk 0:03:03]}  Qxd6 {[%clk 0:03:05]} 11. O-O {[%clk 0:03:04]}  O-O {[%clk 0:03:06]} 12. Rae1 {[%clk 0:03:05]}  Rab8 {[%clk 0:03:07]} 13. Ne5 {[%clk 0:02:57]}  Bh5 {[%clk 0:03:03]} 14. f4 {[%clk 0:02:57]}  Ne7 {[%clk 0:03:01]} 15. f5 {[%clk 0:02:54]}  exf5 {[%clk 0:02:50]} 16. Bxf5 {[%clk 0:02:53]}  Nxf5 {[%clk 0:02:35]} 17. Rxf5 {[%clk 0:02:54]}  b5 {[%clk 0:02:34]} 18. a3 {[%clk 0:02:33]}  a5 {[%clk 0:02:32]} 19. Qc2 {[%clk 0:02:32]}  b4 {[%clk 0:02:29]} 20. axb4 {[%clk 0:02:33]}  axb4 {[%clk 0:02:30]} 21. Qd3 {[%clk 0:02:24]}  bxc3 {[%clk 0:02:18]} 22. bxc3 {[%clk 0:02:25]}  Rfc8 {[%clk 0:02:09]} 23. Qg3 {[%clk 0:02:13]}  Bg6 {[%clk 0:02:08]} 24. Nxg6 {[%clk 0:02:10]}  Qxg3 {[%clk 0:01:48]} 25. Ne7+ {[%clk 0:02:10]}  Kf8 {[%clk 0:01:49]} 26. hxg3 {[%clk 0:02:10]}  Rxc3 {[%clk 0:01:25]} 27. Nxd5 {[%clk 0:02:10]}  Nxd5 {[%clk 0:01:24]} 28. Rxd5 {[%clk 0:02:09]}  Rxg3 {[%clk 0:01:25]} 29. Nf3 {[%clk 0:02:03]}  g6 {[%clk 0:01:21]} 30. Rg5 {[%clk 0:01:57]}  Rxg5 {[%clk 0:01:14]} 31. Nxg5 {[%clk 0:01:58]}  Rb5 {[%clk 0:01:07]} 32. Nf3 {[%clk 0:01:53]}  f6 {[%clk 0:01:07]} 33. Kf2 {[%clk 0:01:52]}  h5 {[%clk 0:01:07]} 34. Kg3 {[%clk 0:01:52]}  Kf7 {[%clk 0:01:05]} 35. Rc1 {[%clk 0:01:52]}  Rb7 {[%clk 0:01:05]} 36. d5 {[%clk 0:01:50]}  Rd7 {[%clk 0:01:03]} 37. Rc5 {[%clk 0:01:49]}  Ke7 {[%clk 0:01:01]} 38. Kf4 {[%clk 0:01:39]}  Kd6 {[%clk 0:00:47]} 39. Rc6+ {[%clk 0:01:27]}  Ke7 {[%clk 0:00:36]} 40. Rc5 {[%clk 0:01:19]}  Ra7 {[%clk 0:00:33]} 41. Nd4 {[%clk 0:00:36]}  Kd6 {[%clk 0:00:28]} 42. Nb5+ {[%clk 0:00:30]}  Kxc5 {[%clk 0:00:28]} 43. Nxa7 {[%clk 0:00:31]}  Kxd5 {[%clk 0:00:29]} 44. Nb5 {[%clk 0:00:31]}  Ke6 {[%clk 0:00:28]} 45. Nc7+ {[%clk 0:00:30]}  Kd7 {[%clk 0:00:25]} 46. Nd5 {[%clk 0:00:30]}  Ke6 {[%clk 0:00:26]} 47. Ne3 {[%clk 0:00:30]}  Kd6 {[%clk 0:00:23]} 48. Ke4 {[%clk 0:00:28]}  Ke6 {[%clk 0:00:23]} 49. Nc4 {[%clk 0:00:28]}  h4 {[%clk 0:00:20]} 50. Kf4 {[%clk 0:00:27]}  Kd5 {[%clk 0:00:19]} 51. Nd2 {[%clk 0:00:27]}  Ke6 {[%clk 0:00:20]} 52. Kg4 {[%clk 0:00:26]}  g5 {[%clk 0:00:20]} 53. Nf3 {[%clk 0:00:26]}  Ke7 {[%clk 0:00:06]} 54. Nd4 {[%clk 0:00:21]}  Kd6 {[%clk 0:00:04]} 55. Kf5 {[%clk 0:00:21]}  Ke7 {[%clk 0:00:04]} 56. Nc2 {[%clk 0:00:18]}  Kf7 {[%clk 0:00:04]} 57. Ne3 {[%clk 0:00:19]}  Kg7 {[%clk 0:00:04]} 58. Ng4 {[%clk 0:00:20]}  Kf7 {[%clk 0:00:04]} 59. Nxf6 {[%clk 0:00:20]}  Kg7 {[%clk 0:00:05]} 60. Ne4 {[%clk 0:00:20]}  Kh6 {[%clk 0:00:04]} 61. Nxg5 {[%clk 0:00:19]}  Kh5 {[%clk 0:00:04]} 62. Nh3 {[%clk 0:00:20]}  Kh6 {[%clk 0:00:04]} 63. Kg4 {[%clk 0:00:20]}  Kg6 {[%clk 0:00:05]} 64. Kxh4 {[%clk 0:00:21]}  Kh6 {[%clk 0:00:06]} 65. g4 {[%clk 0:00:22]}  Kg6 {[%clk 0:00:07]} 66. g5 {[%clk 0:00:23]}  Kg7 {[%clk 0:00:07]} 67. Kh5 {[%clk 0:00:23]}  Kf7 {[%clk 0:00:08]} 68. g6+ {[%clk 0:00:24]}  Kg7 {[%clk 0:00:09]} 69. Kg5 {[%clk 0:00:23]}  Kg8 {[%clk 0:00:09]} 70. Kh6 {[%clk 0:00:24]}  Kf8 {[%clk 0:00:10]} 1-0


[Site "https://www.chess.com"]